[Event "*** SCC Grand Prix: Titled Tuesday Blitz"]
[Site "Chess.com"]
[Date "2020.07.21"]
[Round "1"]
[White "Tactictic"]
[Black "KobyKalavannan"]
[Result "0-1"]
[WhiteElo "2369"]
[BlackElo "2724"]
[TimeControl "180+1"]
[EndTime "10:05:02 PDT"]
[Termination "KobyKalavannan won by resignation"]

1. e4 {[%clk 0:03:00.7]} 1... c5 {[%clk 0:02:59]} 2. Nf3 {[%clk 0:03:00.3]} 2...
Nc6 {[%clk 0:02:58.2]} 3. d4 {[%clk 0:03:01]} 3... cxd4 {[%clk 0:02:58.3]} 4.
Nxd4 {[%clk 0:03:01.9]} 4... g6 {[%clk 0:02:59.2]} 5. Be2 {[%clk 0:02:56.9]}
5... Nf6 {[%clk 0:02:56.7]} 6. Nc3 {[%clk 0:02:56.4]} 6... Bg7 {[%clk 0:02:54]}
7. O-O {[%clk 0:02:54.5]} 7... Nxe4 {[%clk 0:02:36.5]} 8. Nxc6 {[%clk 0:02:22]}
8... Nxc3 {[%clk 0:02:35.9]} 9. Nxd8 {[%clk 0:02:16.7]} 9... Nxd1 {[%clk
0:02:36.2]} 10. Nxf7 {[%clk 0:02:15.7]} 10... Kxf7 {[%clk 0:01:43.4]} 11. Rxd1
{[%clk 0:02:13.9]} 11... e6 {[%clk 0:01:44]} 12. c4 {[%clk 0:02:08.5]} 12... Rd8
{[%clk 0:01:41.7]} 13. Rb1 {[%clk 0:02:01.5]} 13... d5 {[%clk 0:01:41.1]} 14.
Bf3 {[%clk 0:02:01.4]} 14... d4 {[%clk 0:01:36.7]} 15. b4 {[%clk 0:01:54.1]}
15... e5 {[%clk 0:01:26.5]} 16. Bd5+ {[%clk 0:01:53.9]} 16... Be6 {[%clk
0:01:26.5]} 17. Bxb7 {[%clk 0:01:50.8]} 17... Rab8 {[%clk 0:01:26.7]} 18. Ba6
{[%clk 0:01:29.7]} 18... Rb6 {[%clk 0:01:22]} 19. b5 {[%clk 0:01:23.9]} 19...
Bxc4 {[%clk 0:01:20.8]} 20. Bg5 {[%clk 0:01:20.6]} 20... Rdb8 {[%clk 0:01:19.6]}
21. Rbc1 {[%clk 0:01:17.4]} 21... Bxb5 {[%clk 0:01:09.6]} 22. Rc7+ {[%clk
0:01:15.6]} 22... Kg8 {[%clk 0:01:05.1]} 23. Bxb5 {[%clk 0:01:14.3]} 23... Rxb5
{[%clk 0:01:06]} 24. Rxa7 {[%clk 0:01:07.3]} 24... Rb1 {[%clk 0:01:05.6]} 0-1

[Event "*** SCC Grand Prix: Titled Tuesday Blitz"]
[Site "Chess.com"]
[Date "2020.07.21"]
[Round "1"]
[White "stanyga"]
[Black "CakeinSpace2002"]
[Result "1-0"]
[WhiteElo "2574"]
[BlackElo "2217"]
[TimeControl "180+1"]
[EndTime "10:05:05 PDT"]
[Termination "stanyga won by resignation"]

1. e4 {[%clk 0:03:00.3]} 1... c6 {[%clk 0:02:59.4]} 2. Nf3 {[%clk 0:02:57.4]}
2... d5 {[%clk 0:02:59.1]} 3. Nc3 {[%clk 0:02:57.4]} 3... Bg4 {[%clk 0:02:57.9]}
4. h3 {[%clk 0:02:56.9]} 4... Bxf3 {[%clk 0:02:57.3]} 5. Qxf3 {[%clk 0:02:56.7]}
5... e6 {[%clk 0:02:58.2]} 6. d3 {[%clk 0:02:56.3]} 6... Nd7 {[%clk 0:02:44.9]}
7. Bd2 {[%clk 0:02:53.4]} 7... Qb6 {[%clk 0:02:41.7]} 8. O-O-O {[%clk
0:02:52.5]} 8... d4 {[%clk 0:02:37.9]} 9. Ne2 {[%clk 0:02:45.2]} 9... a5 {[%clk
0:02:35.8]} 10. e5 {[%clk 0:01:51.7]} 10... Ne7 {[%clk 0:02:12.5]} 11. Qe4
{[%clk 0:01:47.6]} 11... c5 {[%clk 0:02:12.2]} 12. g4 {[%clk 0:01:39.9]} 12...
a4 {[%clk 0:02:04]} 13. a3 {[%clk 0:01:39.3]} 13... Nc6 {[%clk 0:01:58.5]} 14.
Bg2 {[%clk 0:01:40.2]} 14... Ndxe5 {[%clk 0:01:47.2]} 15. f4 {[%clk 0:01:32]}
15... c4 {[%clk 0:01:46.9]} 16. fxe5 {[%clk 0:01:28.2]} 16... c3 {[%clk
0:01:46.7]} 17. Nxc3 {[%clk 0:01:28.1]} 17... dxc3 {[%clk 0:01:44.5]} 18. Bxc3
{[%clk 0:01:28.2]} 18... Be7 {[%clk 0:01:30.8]} 19. d4 {[%clk 0:01:20.6]} 19...
O-O {[%clk 0:01:22.8]} 20. d5 {[%clk 0:01:19.9]} 20... exd5 {[%clk 0:01:21.7]}
21. Rxd5 {[%clk 0:01:19.5]} 21... Rad8 {[%clk 0:01:09]} 22. Rhd1 {[%clk
0:01:18.1]} 22... Bg5+ {[%clk 0:01:08.9]} 23. Kb1 {[%clk 0:01:17.7]} 23... Rc8
{[%clk 0:01:09.1]} 24. e6 {[%clk 0:01:13]} 24... fxe6 {[%clk 0:01:07.9]} 25.
Qxe6+ {[%clk 0:01:12.7]} 25... Kh8 {[%clk 0:01:06.6]} 26. Rxg5 {[%clk
0:01:09.1]} 1-0

[Event "*** SCC Grand Prix: Titled Tuesday Blitz"]
[Site "Chess.com"]
[Date "2020.07.21"]
[Round "1"]
[White "ApacheSVD"]
[Black "VovenRogel"]
[Result "0-1"]
[WhiteElo "2376"]
[BlackElo "2735"]
[TimeControl "180+1"]
[EndTime "10:05:18 PDT"]
[Termination "VovenRogel won by resignation"]

1. e4 {[%clk 0:02:55.7]} 1... e5 {[%clk 0:02:43.8]} 2. Nf3 {[%clk 0:02:55.5]}
2... Nc6 {[%clk 0:02:41.7]} 3. Bc4 {[%clk 0:02:55.5]} 3... Bc5 {[%clk
0:02:40.6]} 4. c3 {[%clk 0:02:54.6]} 4... Nf6 {[%clk 0:02:39.4]} 5. d3 {[%clk
0:02:54.5]} 5... O-O {[%clk 0:02:34]} 6. O-O {[%clk 0:02:52.4]} 6... h6 {[%clk
0:02:27.3]} 7. Re1 {[%clk 0:02:46.7]} 7... d6 {[%clk 0:02:27]} 8. h3 {[%clk
0:02:46.3]} 8... Re8 {[%clk 0:02:22.7]} 9. a4 {[%clk 0:02:40.8]} 9... a5 {[%clk
0:02:21.9]} 10. Na3 {[%clk 0:02:29.5]} 10... Bxa3 {[%clk 0:02:17.1]} 11. Rxa3
{[%clk 0:02:24.7]} 11... Be6 {[%clk 0:02:18]} 12. Bxe6 {[%clk 0:02:08.4]} 12...
Rxe6 {[%clk 0:02:18.9]} 13. Rb3 {[%clk 0:02:06.7]} 13... b6 {[%clk 0:02:17.9]}
14. d4 {[%clk 0:01:15.8]} 14... exd4 {[%clk 0:02:17.1]} 15. Nxd4 {[%clk
0:01:16.7]} 15... Nxd4 {[%clk 0:02:16.5]} 16. Qxd4 {[%clk 0:01:16]} 16... Qe8
{[%clk 0:02:11.7]} 17. f3 {[%clk 0:01:06.4]} 17... c5 {[%clk 0:02:05.7]} 18. Qc4
{[%clk 0:00:43.9]} 18... d5 {[%clk 0:02:04.8]} 19. Qb5 {[%clk 0:00:44.3]} 19...
dxe4 {[%clk 0:02:04]} 20. Bf4 {[%clk 0:00:18.3]} 20... exf3 {[%clk 0:02:00.2]}
21. Rxe6 {[%clk 0:00:18.1]} 21... Qxe6 {[%clk 0:01:58.1]} 22. gxf3 {[%clk
0:00:18.1]} 22... Nd5 {[%clk 0:01:54.2]} 23. Bg3 {[%clk 0:00:15.3]} 23... Qxh3
{[%clk 0:01:51.9]} 24. Bf2 {[%clk 0:00:13.2]} 24... Nf4 {[%clk 0:01:44.1]} 25.
Qf1 {[%clk 0:00:11.4]} 25... Qxf3 {[%clk 0:01:43.6]} 26. Rxb6 {[%clk 0:00:10.4]}
26... Nh3+ {[%clk 0:01:43.4]} 27. Kh2 {[%clk 0:00:10.9]} 27... Nxf2 {[%clk
0:01:43.6]} 28. Qxf2 {[%clk 0:00:11.5]} 28... Qxf2+ {[%clk 0:01:43.5]} 0-1

[Event "*** SCC Grand Prix: Titled Tuesday Blitz"]
[Site "Chess.com"]
[Date "2020.07.21"]
[Round "1"]
[White "natelleka"]
[Black "ChristianAlm"]
[Result "0-1"]
[WhiteElo "2123"]
[BlackElo "2524"]
[TimeControl "180+1"]
[EndTime "10:05:19 PDT"]
[Termination "ChristianAlm won by resignation"]

1. d4 {[%clk 0:02:58.4]} 1... Nf6 {[%clk 0:02:57]} 2. Bf4 {[%clk 0:02:57.9]}
2... d5 {[%clk 0:02:56.2]} 3. e3 {[%clk 0:02:57.7]} 3... g6 {[%clk 0:02:56.5]}
4. Nf3 {[%clk 0:02:56.5]} 4... Bg7 {[%clk 0:02:57]} 5. Be2 {[%clk 0:02:55.3]}
5... O-O {[%clk 0:02:56.8]} 6. O-O {[%clk 0:02:55.3]} 6... c5 {[%clk 0:02:57.1]}
7. c3 {[%clk 0:02:54.4]} 7... Bf5 {[%clk 0:02:49.3]} 8. Qb3 {[%clk 0:02:46.3]}
8... b6 {[%clk 0:02:40.5]} 9. Nbd2 {[%clk 0:02:44.4]} 9... Nc6 {[%clk 0:02:38]}
10. h3 {[%clk 0:02:41.9]} 10... Na5 {[%clk 0:02:22.4]} 11. Qa3 {[%clk
0:02:38.9]} 11... cxd4 {[%clk 0:02:12.7]} 12. exd4 {[%clk 0:02:31.8]} 12... Re8
{[%clk 0:02:08.7]} 13. Bb5 {[%clk 0:02:23.9]} 13... Bd7 {[%clk 0:02:07.6]} 14.
Bxd7 {[%clk 0:02:18.7]} 14... Nxd7 {[%clk 0:02:08.5]} 15. Rfe1 {[%clk 0:02:13]}
15... Bf8 {[%clk 0:02:08]} 16. Qa4 {[%clk 0:02:09.5]} 16... a6 {[%clk
0:01:57.8]} 17. b4 {[%clk 0:01:58.2]} 17... Nc4 {[%clk 0:01:51.3]} 18. Nxc4
{[%clk 0:01:56.8]} 18... b5 {[%clk 0:01:43.3]} 19. Qc2 {[%clk 0:01:49.9]} 19...
bxc4 {[%clk 0:01:42.6]} 20. a4 {[%clk 0:01:47.5]} 20... Bg7 {[%clk 0:01:39.1]}
21. Ne5 {[%clk 0:01:46.8]} 21... Nxe5 {[%clk 0:01:36.4]} 22. Bxe5 {[%clk
0:01:47.7]} 22... f6 {[%clk 0:01:32.3]} 23. Bg3 {[%clk 0:01:46.8]} 23... Qd7
{[%clk 0:01:27.1]} 24. h4 {[%clk 0:01:42.8]} 24... e5 {[%clk 0:01:23.6]} 25.
dxe5 {[%clk 0:01:38.8]} 25... fxe5 {[%clk 0:01:24.5]} 26. Rad1 {[%clk
0:01:34.9]} 26... Rac8 {[%clk 0:01:14.9]} 27. Re2 {[%clk 0:01:27]} 27... d4
{[%clk 0:01:11.1]} 28. Qe4 {[%clk 0:01:18.8]} 28... Qxa4 {[%clk 0:01:01.5]} 29.
Qd5+ {[%clk 0:01:05.3]} 29... Kh8 {[%clk 0:01:00.4]} 30. Bxe5 {[%clk 0:01:04.8]}
30... Qxd1+ {[%clk 0:00:59.7]} 0-1

[Event "*** SCC Grand Prix: Titled Tuesday Blitz"]
[Site "Chess.com"]
[Date "2020.07.21"]
[Round "1"]
[White "Spartakus1975"]
[Black "awesomevishesh"]
[Result "1-0"]
[WhiteElo "2664"]
[BlackElo "2327"]
[TimeControl "180+1"]
[EndTime "10:05:21 PDT"]
[Termination "Spartakus1975 won on time"]

1. e4 {[%clk 0:02:58.1]} 1... c5 {[%clk 0:02:59.1]} 2. c3 {[%clk 0:02:57.4]}
2... Nf6 {[%clk 0:02:58.6]} 3. e5 {[%clk 0:02:56.2]} 3... Nd5 {[%clk 0:02:58.5]}
4. Nf3 {[%clk 0:02:52.9]} 4... d6 {[%clk 0:02:54.9]} 5. d4 {[%clk 0:02:51.6]}
5... cxd4 {[%clk 0:02:54.6]} 6. cxd4 {[%clk 0:02:51.1]} 6... Nc6 {[%clk
0:02:51.2]} 7. Bc4 {[%clk 0:02:50.4]} 7... Nb6 {[%clk 0:02:42.2]} 8. Bb5 {[%clk
0:02:49.3]} 8... Bd7 {[%clk 0:02:40.5]} 9. Nc3 {[%clk 0:02:47.7]} 9... dxe5
{[%clk 0:02:33.8]} 10. dxe5 {[%clk 0:02:46]} 10... g6 {[%clk 0:02:30.1]} 11. O-O
{[%clk 0:02:42.6]} 11... Bg7 {[%clk 0:02:30.2]} 12. Qe2 {[%clk 0:02:39.8]} 12...
a6 {[%clk 0:02:17.1]} 13. Bxc6 {[%clk 0:02:32.6]} 13... Bxc6 {[%clk 0:02:15.1]}
14. e6 {[%clk 0:02:32.4]} 14... O-O {[%clk 0:01:13.9]} 15. exf7+ {[%clk
0:02:28.6]} 15... Rxf7 {[%clk 0:01:11.1]} 16. Ng5 {[%clk 0:02:18.1]} 16... Rf6
{[%clk 0:01:03.7]} 17. Ne6 {[%clk 0:02:16]} 17... Qd6 {[%clk 0:00:33]} 18. Nxg7
{[%clk 0:02:14.9]} 18... Kxg7 {[%clk 0:00:33.9]} 19. Rd1 {[%clk 0:02:01.1]}
19... Qe6 {[%clk 0:00:26.4]} 20. Be3 {[%clk 0:02:00.6]} 20... Bb5 {[%clk
0:00:05.3]} 21. Nxb5 {[%clk 0:01:43.6]} 21... axb5 {[%clk 0:00:06.2]} 22. Qxb5
{[%clk 0:01:43.5]} 22... Kg8 {[%clk 0:00:02.9]} 23. Bd4 {[%clk 0:01:40.7]} 1-0

[Event "*** SCC Grand Prix: Titled Tuesday Blitz"]
[Site "Chess.com"]
[Date "2020.07.21"]
[Round "1"]
[White "VerdeNotte"]
[Black "Happy1712Drummer"]
[Result "1-0"]
[WhiteElo "2832"]
[BlackElo "2414"]
[TimeControl "180+1"]
[EndTime "10:05:27 PDT"]
[Termination "VerdeNotte won on time"]

1. e4 {[%clk 0:02:56.4]} 1... c6 {[%clk 0:02:55.4]} 2. Nf3 {[%clk 0:02:55.1]}
2... d5 {[%clk 0:02:53.5]} 3. exd5 {[%clk 0:02:55.6]} 3... cxd5 {[%clk
0:02:52.1]} 4. Ne5 {[%clk 0:02:55.8]} 4... Nf6 {[%clk 0:02:44.7]} 5. Bb5+ {[%clk
0:02:50.7]} 5... Bd7 {[%clk 0:02:38.2]} 6. Nxd7 {[%clk 0:02:50.3]} 6... Nbxd7
{[%clk 0:02:35.1]} 7. d4 {[%clk 0:02:47.1]} 7... e6 {[%clk 0:02:27.2]} 8. O-O
{[%clk 0:02:46.6]} 8... Be7 {[%clk 0:02:23.4]} 9. Re1 {[%clk 0:02:46.3]} 9...
O-O {[%clk 0:02:14]} 10. Bd3 {[%clk 0:02:46.4]} 10... Nb8 {[%clk 0:01:56.5]} 11.
Nd2 {[%clk 0:02:44.8]} 11... Nc6 {[%clk 0:01:54.4]} 12. Nf3 {[%clk 0:02:43.6]}
12... Rc8 {[%clk 0:01:50.8]} 13. c3 {[%clk 0:02:42.4]} 13... a6 {[%clk
0:01:47.8]} 14. Ne5 {[%clk 0:02:34.8]} 14... Nxe5 {[%clk 0:01:16.1]} 15. dxe5
{[%clk 0:02:35.7]} 15... Nd7 {[%clk 0:01:15.8]} 16. Bf4 {[%clk 0:02:22.2]} 16...
Re8 {[%clk 0:01:09]} 17. Re3 {[%clk 0:02:11.3]} 17... Nf8 {[%clk 0:01:05.6]} 18.
Qg4 {[%clk 0:02:08.1]} 18... Ng6 {[%clk 0:00:44.9]} 19. Rg3 {[%clk 0:02:06.3]}
19... Qb6 {[%clk 0:00:32.8]} 20. Rb1 {[%clk 0:01:58]} 20... Bf8 {[%clk
0:00:29.7]} 21. Be3 {[%clk 0:01:48.3]} 21... Qa5 {[%clk 0:00:21.5]} 22. a3
{[%clk 0:01:44.4]} 22... Qc7 {[%clk 0:00:13.5]} 23. Bd4 {[%clk 0:01:36.5]} 23...
Bc5 {[%clk 0:00:11.2]} 24. h4 {[%clk 0:01:36.3]} 24... Bxd4 {[%clk 0:00:10.9]}
25. cxd4 {[%clk 0:01:36.2]} 1-0

[Event "*** SCC Grand Prix: Titled Tuesday Blitz"]
[Site "Chess.com"]
[Date "2020.07.21"]
[Round "1"]
[White "FabianoCaruana"]
[Black "Chesswizard_2007"]
[Result "1-0"]
[WhiteElo "3042"]
[BlackElo "2459"]
[TimeControl "180+1"]
[EndTime "10:05:36 PDT"]
[Termination "FabianoCaruana won by resignation"]

1. d4 {[%clk 0:03:00.3]} 1... Nf6 {[%clk 0:02:58.1]} 2. Nf3 {[%clk 0:03:01.2]}
2... g6 {[%clk 0:02:57.4]} 3. g3 {[%clk 0:03:01.7]} 3... Bg7 {[%clk 0:02:57.6]}
4. Bg2 {[%clk 0:03:02.6]} 4... O-O {[%clk 0:02:58]} 5. O-O {[%clk 0:03:03.5]}
5... d6 {[%clk 0:02:55.7]} 6. c4 {[%clk 0:03:03.5]} 6... Nc6 {[%clk 0:02:52.9]}
7. Nc3 {[%clk 0:03:03.6]} 7... a6 {[%clk 0:02:51.4]} 8. Bg5 {[%clk 0:02:58.6]}
8... Rb8 {[%clk 0:02:45.9]} 9. Rc1 {[%clk 0:02:58.3]} 9... Bf5 {[%clk
0:02:42.8]} 10. d5 {[%clk 0:02:57]} 10... Na5 {[%clk 0:02:32.3]} 11. Nd2 {[%clk
0:02:54.4]} 11... c5 {[%clk 0:02:30]} 12. e4 {[%clk 0:02:53.5]} 12... Bg4 {[%clk
0:02:16.3]} 13. f3 {[%clk 0:02:52]} 13... Bd7 {[%clk 0:02:15]} 14. Re1 {[%clk
0:02:36.9]} 14... b5 {[%clk 0:02:14.4]} 15. b3 {[%clk 0:02:37.1]} 15... bxc4
{[%clk 0:02:02.4]} 16. bxc4 {[%clk 0:02:38]} 16... Rb4 {[%clk 0:01:49.1]} 17.
Bf1 {[%clk 0:02:34.4]} 17... Nh5 {[%clk 0:01:43.1]} 18. Be3 {[%clk 0:02:29.5]}
18... Qc7 {[%clk 0:01:15.1]} 19. f4 {[%clk 0:02:28.2]} 19... Bd4 {[%clk
0:01:03.5]} 20. Qc2 {[%clk 0:02:12.4]} 20... Bxe3+ {[%clk 0:01:01.8]} 21. Rxe3
{[%clk 0:02:13.3]} 21... Rfb8 {[%clk 0:01:01.1]} 22. Rce1 {[%clk 0:02:12.1]}
22... Rb2 {[%clk 0:01:00]} 23. Qc1 {[%clk 0:02:10.9]} 23... Nf6 {[%clk 0:01:00]}
24. h3 {[%clk 0:02:10.4]} 24... R2b7 {[%clk 0:00:54]} 25. e5 {[%clk 0:02:09.9]}
25... Nh5 {[%clk 0:00:50.9]} 26. Nde4 {[%clk 0:02:04.6]} 26... Rb6 {[%clk
0:00:23.3]} 27. exd6 {[%clk 0:01:50.7]} 27... exd6 {[%clk 0:00:24.2]} 28. g4
{[%clk 0:01:49.4]} 28... Nxf4 {[%clk 0:00:24.3]} 29. Rf3 {[%clk 0:01:49.3]}
29... g5 {[%clk 0:00:16.8]} 30. Nxg5 {[%clk 0:01:47.8]} 30... Ng6 {[%clk
0:00:16.4]} 31. Rxf7 {[%clk 0:01:46.9]} 31... Rf8 {[%clk 0:00:13.3]} 32. Ne6
{[%clk 0:01:43]} 32... Rxf7 {[%clk 0:00:06.8]} 33. Nxc7 {[%clk 0:01:43]} 33...
Nf4 {[%clk 0:00:07.5]} 34. Ne6 {[%clk 0:01:41.6]} 1-0

[Event "*** SCC Grand Prix: Titled Tuesday Blitz"]
[Site "Chess.com"]
[Date "2020.07.21"]
[Round "1"]
[White "maxip32"]
[Black "rasmussvane"]
[Result "0-1"]
[WhiteElo "2438"]
[BlackElo "2896"]
[TimeControl "180+1"]
[EndTime "10:05:37 PDT"]
[Termination "rasmussvane won by checkmate"]

1. e4 {[%clk 0:03:00.5]} 1... c6 {[%clk 0:02:58.7]} 2. d4 {[%clk 0:03:00.1]}
2... d5 {[%clk 0:02:59.6]} 3. e5 {[%clk 0:03:00]} 3... Bf5 {[%clk 0:02:59.5]} 4.
h4 {[%clk 0:02:59.7]} 4... h5 {[%clk 0:02:59.5]} 5. c4 {[%clk 0:02:59.8]} 5...
e6 {[%clk 0:02:59.6]} 6. Nc3 {[%clk 0:03:00.1]} 6... Ne7 {[%clk 0:02:59.7]} 7.
Nge2 {[%clk 0:02:59.5]} 7... Nd7 {[%clk 0:02:59.9]} 8. Ng3 {[%clk 0:02:59.4]}
8... Bg6 {[%clk 0:03:00.5]} 9. Bg5 {[%clk 0:02:54.1]} 9... Qb6 {[%clk 0:03:00]}
10. Qd2 {[%clk 0:02:51.9]} 10... dxc4 {[%clk 0:02:50.3]} 11. Bxc4 {[%clk
0:02:51]} 11... O-O-O {[%clk 0:02:50.2]} 12. Be3 {[%clk 0:01:54.9]} 12... Qb4
{[%clk 0:02:25.3]} 13. Qe2 {[%clk 0:01:50]} 13... Nb6 {[%clk 0:02:25.2]} 14. Bb3
{[%clk 0:01:46.5]} 14... Ned5 {[%clk 0:02:24]} 15. Bd2 {[%clk 0:01:42.7]} 15...
Qxd4 {[%clk 0:02:16.6]} 16. O-O-O {[%clk 0:01:34]} 16... Ba3 {[%clk 0:01:38.5]}
17. Bxd5 {[%clk 0:00:40.8]} 17... Nxd5 {[%clk 0:01:28.5]} 18. Be1 {[%clk
0:00:20]} 18... Qf4+ {[%clk 0:01:09.4]} 19. Qd2 {[%clk 0:00:10.8]} 19... Nxc3
{[%clk 0:01:07.2]} 20. Qxf4 {[%clk 0:00:09.6]} 20... Nxa2# {[%clk 0:01:05.9]}
0-1

[Event "*** SCC Grand Prix: Titled Tuesday Blitz"]
[Site "Chess.com"]
[Date "2020.07.21"]
[Round "1"]
[White "pfalcon1949"]
[Black "Paul66666"]
[Result "0-1"]
[WhiteElo "2002"]
[BlackElo "2486"]
[TimeControl "180+1"]
[EndTime "10:05:39 PDT"]
[Termination "Paul66666 won by resignation"]

1. d4 {[%clk 0:03:00.6]} 1... d5 {[%clk 0:02:49.2]} 2. c4 {[%clk 0:03:00.1]}
2... c6 {[%clk 0:02:48.5]} 3. cxd5 {[%clk 0:02:58]} 3... cxd5 {[%clk 0:02:47.8]}
4. Nc3 {[%clk 0:02:58.2]} 4... Nf6 {[%clk 0:02:48.4]} 5. Bf4 {[%clk 0:02:57.1]}
5... Nc6 {[%clk 0:02:47.1]} 6. e3 {[%clk 0:02:56.1]} 6... a6 {[%clk 0:02:46.7]}
7. Be2 {[%clk 0:02:55.2]} 7... e6 {[%clk 0:02:45.9]} 8. Rc1 {[%clk 0:02:51.6]}
8... Nd7 {[%clk 0:02:45.1]} 9. Nf3 {[%clk 0:02:51.5]} 9... Be7 {[%clk
0:02:44.3]} 10. O-O {[%clk 0:02:50]} 10... O-O {[%clk 0:02:43.8]} 11. Bd3 {[%clk
0:02:49]} 11... h6 {[%clk 0:02:39.4]} 12. Bb1 {[%clk 0:02:48.3]} 12... f5 {[%clk
0:02:33.7]} 13. Ne5 {[%clk 0:02:42.9]} 13... Ndxe5 {[%clk 0:02:32.5]} 14. Bxe5
{[%clk 0:02:41.1]} 14... Nxe5 {[%clk 0:02:30.9]} 15. dxe5 {[%clk 0:02:41]} 15...
Bd7 {[%clk 0:02:31.4]} 16. f4 {[%clk 0:02:32.7]} 16... Qb6 {[%clk 0:02:25.4]}
17. Qd2 {[%clk 0:02:20.4]} 17... Bc5 {[%clk 0:02:14.4]} 18. Rf3 {[%clk
0:02:10.2]} 18... Rac8 {[%clk 0:02:11.8]} 19. Kh1 {[%clk 0:02:09.6]} 19... Rfd8
{[%clk 0:02:06.3]} 20. Re1 {[%clk 0:02:02.4]} 20... Be8 {[%clk 0:02:02.2]} 21.
Rg3 {[%clk 0:01:48.7]} 21... d4 {[%clk 0:01:58.7]} 22. exd4 {[%clk 0:01:42.5]}
22... Bxd4 {[%clk 0:01:58.7]} 23. Qe2 {[%clk 0:01:22.6]} 23... Bf2 {[%clk
0:01:54.7]} 24. Rf1 {[%clk 0:01:00.5]} 24... Bxg3 {[%clk 0:01:53]} 25. hxg3
{[%clk 0:01:01.4]} 25... Bb5 {[%clk 0:01:32]} 26. Nxb5 {[%clk 0:00:59.4]} 26...
Qxb5 {[%clk 0:01:32.9]} 27. Qf2 {[%clk 0:00:55.2]} 27... Rd2 {[%clk 0:01:31]}
28. Qf3 {[%clk 0:00:50.5]} 28... Qe2 {[%clk 0:01:21.6]} 29. Qxe2 {[%clk
0:00:20.9]} 29... Rxe2 {[%clk 0:01:22.5]} 30. Bd3 {[%clk 0:00:20.5]} 0-1

[Event "*** SCC Grand Prix: Titled Tuesday Blitz"]
[Site "Chess.com"]
[Date "2020.07.21"]
[Round "1"]
[White "CaspiIsrael"]
[Black "VALPARAISO37"]
[Result "1-0"]
[WhiteElo "2619"]
[BlackElo "2277"]
[TimeControl "180+1"]
[EndTime "10:05:41 PDT"]
[Termination "CaspiIsrael won by resignation"]

1. e4 {[%clk 0:02:58.3]} 1... e5 {[%clk 0:02:58.4]} 2. Nf3 {[%clk 0:02:57.6]}
2... Nc6 {[%clk 0:02:57.7]} 3. Bb5 {[%clk 0:02:56.6]} 3... a6 {[%clk 0:02:55.1]}
4. Ba4 {[%clk 0:02:56.7]} 4... Nf6 {[%clk 0:02:54.5]} 5. O-O {[%clk 0:02:56]}
5... Bc5 {[%clk 0:02:52.2]} 6. c3 {[%clk 0:02:49]} 6... b5 {[%clk 0:02:49.6]} 7.
Bb3 {[%clk 0:02:47.3]} 7... d6 {[%clk 0:02:48.8]} 8. a4 {[%clk 0:02:37.7]} 8...
Bb7 {[%clk 0:02:42.1]} 9. d3 {[%clk 0:02:37]} 9... O-O {[%clk 0:02:40.5]} 10.
Bg5 {[%clk 0:02:36.3]} 10... Re8 {[%clk 0:02:39]} 11. Nbd2 {[%clk 0:02:35.6]}
11... Bb6 {[%clk 0:02:37.5]} 12. Re1 {[%clk 0:02:30.8]} 12... h6 {[%clk
0:02:36.8]} 13. Bh4 {[%clk 0:02:30.4]} 13... g5 {[%clk 0:02:37.2]} 14. Nxg5
{[%clk 0:02:21.9]} 14... hxg5 {[%clk 0:02:37.4]} 15. Bxg5 {[%clk 0:02:22.8]}
15... Kg7 {[%clk 0:02:38]} 16. Qf3 {[%clk 0:02:12]} 16... Rh8 {[%clk 0:02:36.7]}
17. Nf1 {[%clk 0:01:55.2]} 17... Nb8 {[%clk 0:02:24.7]} 18. Ng3 {[%clk
0:01:51.6]} 18... Nbd7 {[%clk 0:02:24.5]} 19. h4 {[%clk 0:01:46.7]} 19... Kg6
{[%clk 0:02:09.8]} 20. Nf5 {[%clk 0:01:29.5]} 20... Rh5 {[%clk 0:01:59.4]} 21.
Qg3 {[%clk 0:01:26.9]} 21... Qf8 {[%clk 0:01:31.5]} 22. Bh6+ {[%clk 0:01:20.8]}
22... Kh7 {[%clk 0:01:32]} 23. Bxf8 {[%clk 0:01:20.7]} 23... Ne8 {[%clk
0:01:17.1]} 24. Bxf7 {[%clk 0:01:16.3]} 24... Bxf2+ {[%clk 0:01:00.3]} 25. Kxf2
{[%clk 0:01:14.7]} 25... Rxf5+ {[%clk 0:01:00.4]} 26. exf5 {[%clk 0:01:14.2]}
26... Nxf8 {[%clk 0:00:59]} 27. Qg8+ {[%clk 0:01:12.5]} 27... Kh6 {[%clk
0:00:59.6]} 28. Qxf8+ {[%clk 0:01:12.5]} 28... Ng7 {[%clk 0:00:58.4]} 29. Qe7
{[%clk 0:01:08.2]} 29... Nxf5 {[%clk 0:00:50.9]} 30. Qg5+ {[%clk 0:01:07.6]}
30... Kh7 {[%clk 0:00:48.3]} 31. Qxf5+ {[%clk 0:01:07.8]} 31... Kg7 {[%clk
0:00:48.9]} 32. Qg6+ {[%clk 0:01:06.7]} 32... Kf8 {[%clk 0:00:47.9]} 33. Be6
{[%clk 0:01:05.9]} 1-0